bitfinex/quotes_BTCUSD_20241229
["timestamp","ask_amount","ask_price","bid_price","bid_amount"]
[1735489288633,0.50327493,94191.0,94190.0,0.09993521]
[1735489289587,0.55019127,94191.0,94190.0,0.09993521]
[1735489290437,0.55119127,94191.0,94190.0,0.09993521]
[1735489290782,0.31610169,94191.0,94190.0,0.09993521]
[1735489291855,0.21211537,94191.0,94190.0,0.09993521]
[1735489292154,0.001,94191.0,94190.0,0.09993521]
[1735489292781,1.26259832,94191.0,94190.0,0.09993521]
[1735489292983,0.89618032,94191.0,94190.0,0.09993521]
[1735489293183,0.48736732,94191.0,94190.0,0.09993521]
[1735489293383,0.366885,94191.0,94190.0,0.09993521]
[1735489293589,0.356164,94191.0,94190.0,0.09993521]
[1735489294633,0.21758,94191.0,94190.0,0.09993521]
[1735489294791,0.001,94191.0,94190.0,0.09993521]
[1735489296242,0.18934601,94191.0,94190.0,0.09993521]
[1735489296447,0.18934601,94191.0,94190.0,0.10002061]
[1735489296651,0.18951681,94191.0,94190.0,0.10002061]
[1735489297585,0.18951681,94191.0,94190.0,0.09755861]
[1735489298325,0.23660332,94191.0,94190.0,0.09755861]
[1735489298524,0.25325598,94191.0,94190.0,0.09755861]
[1735489299071,0.01782346,94191.0,94190.0,0.09755861]
[1735489299218,0.20749146,94191.0,94190.0,0.09755861]
[1735489300256,0.01782346,94191.0,94190.0,0.09755861]
[1735489300878,0.21435546,94191.0,94190.0,0.09755861]
[1735489301058,0.43434946,94191.0,94190.0,0.09755861]
[1735489301255,0.61393578,94191.0,94190.0,0.09755861]
[1735489302496,0.53833578,94191.0,94190.0,0.09755861]
[1735489303980,0.52168312,94191.0,94190.0,0.09755861]
[1735489306857,1.26276912,94191.0,94190.0,0.09755861]
[1735489307818,1.20569812,94191.0,94190.0,0.07841641]
[1735489308476,1.50538588,94191.0,94190.0,0.07841641]
[1735489308871,1.46038588,94191.0,94190.0,0.07841641]
[1735489309088,1.09207988,94191.0,94190.0,0.07841641]
[1735489309242,0.76609788,94191.0,94190.0,0.07841641]
[1735489309444,0.48306329,94191.0,94190.0,0.07841641]
[1735489310579,0.70366329,94191.0,94190.0,0.05812752]
[1735489310781,0.2206,94182.0,94181.0,0.00650551]
[1735489311011,0.72481032,94182.0,94181.0,0.002688]
[1735489311198,0.22202732,94182.0,94181.0,0.002688]
[1735489311399,0.01782397,94191.0,94181.0,0.002688]
[1735489311604,0.28316796,94184.0,94181.0,0.002688]
[1735489311805,1.26159832,94183.0,94181.0,0.002688]
[1735489311998,0.693799,94182.0,94171.0,0.000106]
[1735489312282,0.71111454,94182.0,94171.0,0.000106]
[1735489312481,0.542864,94181.0,94171.0,0.000106]
[1735489312691,0.01665437,94180.0,94171.0,0.000106]
[1735489312941,0.552714,94179.0,94171.0,0.000106]
[1735489313722,0.01731554,94178.0,94171.0,0.003106]
[1735489314117,0.01731554,94178.0,94171.0,0.002106]
[1735489314319,0.2359589,94173.0,94171.0,0.002106]
[1735489314526,0.2359589,94173.0,94171.0,0.004106]
[1735489314746,0.2359589,94173.0,94171.0,0.002106]
[1735489315011,0.00665982,94172.0,94171.0,0.002106]
[1735489315211,0.24261872,94172.0,94171.0,0.002106]
[1735489316211,0.24261872,94172.0,94171.0,0.005106]
[1735489316905,0.24261872,94172.0,94171.0,0.003106]
[1735489317377,0.02331434,94172.0,94171.0,0.006106]
[1735489317604,0.02331434,94172.0,94171.0,0.003106]
[1735489317832,0.02331434,94172.0,94171.0,0.004106]
[1735489318248,0.02431434,94172.0,94171.0,0.007106]
[1735489318466,0.02431434,94172.0,94171.0,0.003106]
[1735489318699,0.02431434,94172.0,94171.0,0.007106]
[1735489319572,0.16589127,94172.0,94171.0,0.007106]
[1735489320334,1.42748959,94172.0,94171.0,0.007106]
[1735489320543,0.12830066,94172.0,94171.0,0.007106]
[1735489320742,0.02431434,94172.0,94171.0,0.007106]
[1735489321107,0.02431434,94172.0,94171.0,0.0031914]
[1735489321535,0.02431434,94172.0,94171.0,0.0041914]
[1735489321754,0.02331434,94172.0,94171.0,0.0011914]
[1735489322136,0.02331434,94172.0,94171.0,0.0001914]
[1735489322585,0.02331434,94172.0,94171.0,0.0051914]
[1735489323176,0.02331434,94172.0,94171.0,0.0031914]
[1735489323912,0.00665982,94172.0,94171.0,0.0031914]
[1735489324280,0.0001708,94191.0,94171.0,0.0041914]
[1735489324281,0.00606703,94175.0,94171.0,0.0041914]
[1735489324486,0.00606703,94175.0,94171.0,0.0071914]
[1735489324907,0.00606703,94175.0,94171.0,0.0001914]
[1735489325102,0.23598526,94175.0,94171.0,0.0031914]
[1735489325731,0.001,94172.0,94171.0,0.0061914]
[1735489326141,0.23598526,94175.0,94171.0,0.0061914]
[1735489326142,0.18878035,94173.0,94171.0,0.0001914]
[1735489326982,0.16751321,94175.0,94171.0,0.0001914]
[1735489327191,0.01665601,94173.0,94171.0,0.0001914]
[1735489328334,1.36697737,94172.0,94171.0,0.0001914]
[1735489328512,1.41687737,94172.0,94171.0,0.0021914]
[1735489328740,1.41687737,94172.0,94171.0,0.0051914]
[1735489329170,1.41687737,94172.0,94171.0,0.0001914]
[1735489329381,1.51687737,94172.0,94161.0,7e-05]
[1735489329583,1.51687737,94172.0,94099.0,0.0761]
[1735489329584,0.1782,94152.0,94099.0,0.0761]
[1735489329788,0.1495,94151.0,94099.0,0.0761]
[1735489329998,0.1,94143.0,94099.0,0.0761]
[1735489330223,1.36159832,94143.0,94099.0,0.0761]
[1735489330435,0.1,94133.0,94080.0,0.0761]
[1735489330613,1.26159832,94132.0,94105.0,0.09545209]
[1735489330829,1.157612,94131.0,94105.0,0.09545209]
[1735489331067,0.10398632,94130.0,94105.0,0.09545209]
[1735489331275,0.10398632,94125.0,94105.0,0.09545209]
[1735489331398,0.10398632,94123.0,94105.0,0.09545209]
[1735489331612,0.48284832,94123.0,94105.0,0.09545209]
[1735489331817,1.00970532,94123.0,94105.0,0.09545209]
[1735489332021,0.90643832,94123.0,94100.0,4e-05]
[1735489332230,0.44630832,94123.0,94100.0,4e-05]
[1735489332834,0.44630832,94123.0,94122.0,0.0030854]
[1735489333035,0.67400832,94123.0,94122.0,0.0030854]
[1735489333635,0.67500832,94123.0,94122.0,0.0030854]
[1735489333839,0.67400832,94123.0,94122.0,0.0030854]
[1735489334225,0.67500832,94123.0,94122.0,0.0030854]
[1735489334431,0.1,94115.0,94100.0,4e-05]
[1735489334711,0.10398632,94113.0,94100.0,4e-05]
[1735489334914,0.930357,94112.0,94100.0,4e-05]
[1735489335113,0.10398632,94111.0,94100.0,4e-05]
[1735489335288,1.157612,94110.0,94100.0,4e-05]
[1735489335496,0.10398632,94109.0,94100.0,4e-05]
[1735489335711,1.157612,94108.0,94100.0,4e-05]
[1735489335898,0.10398632,94107.0,94100.0,4e-05]
[1735489336035,1.157612,94106.0,94100.0,4e-05]
[1735489336260,0.10398632,94105.0,94100.0,4e-05]
[1735489336632,1.06793632,94105.0,94100.0,4e-05]
[1735489336834,0.78996624,94104.0,94100.0,4e-05]
[1735489337035,1.12393132,94103.0,94100.0,4e-05]
[1735489337247,0.495804,94102.0,94100.0,4e-05]
[1735489337448,0.10398632,94101.0,94100.0,4e-05]
[1735489337629,0.56947432,94101.0,94100.0,4e-05]
[1735489338031,0.55808532,94101.0,94100.0,4e-05]
[1735489338166,0.55859228,94101.0,94100.0,4e-05]
[1735489339571,0.55859228,94101.0,94100.0,0.00104]
[1735489340424,0.55959228,94101.0,94100.0,0.00104]
[1735489341202,0.10549328,94101.0,94100.0,0.00104]
[1735489341962,0.66835728,94101.0,94100.0,0.00104]
[1735489342677,0.48236828,94101.0,94100.0,0.00104]
[1735489342890,0.21910328,94101.0,94100.0,0.00104]
[1735489343923,0.11511696,94101.0,94100.0,0.00104]
[1735489345229,0.00150696,94101.0,94100.0,0.00104]
[1735489345838,0.00150696,94101.0,94100.0,0.0011255]
[1735489346837,0.01817726,94101.0,94100.0,0.0011255]
[1735489347060,0.71986158,94101.0,94100.0,0.0011255]
[1735489347269,0.91367558,94101.0,94100.0,0.0011255]
[1735489347501,1.02339158,94101.0,94100.0,0.0011255]
[1735489348330,0.80381558,94101.0,94100.0,0.0011255]
[1735489349798,0.75090158,94101.0,94100.0,0.0011255]
[1735489350051,0.73130358,94101.0,94100.0,0.0011255]
[1735489351180,0.69842958,94101.0,94100.0,0.0011255]
[1735489351427,0.67800558,94101.0,94100.0,0.0011255]
[1735489352216,0.67800558,94101.0,94068.0,0.0380337]
[1735489352421,0.65046232,94100.0,94068.0,0.0380337]
[1735489352732,0.304766,94099.0,94068.0,0.0380337]
[1735489353090,0.10398632,94098.0,94068.0,0.0380337]
[1735489353245,0.502774,94097.0,94068.0,0.0380337]
[1735489353452,0.10398632,94096.0,94068.0,0.0390337]
[1735489353658,0.424613,94095.0,94068.0,0.0390337]
[1735489353860,0.0166724,94090.0,94068.0,0.0390337]
[1735489354062,0.10398632,94095.0,94068.0,0.0390337]
[1735489354699,0.01054933,94094.0,94068.0,0.0380337]
[1735489354903,0.10398632,94095.0,94068.0,0.0380337]
[1735489355111,0.01850727,94095.0,94069.0,0.18518632]
[1735489355319,0.537662,94094.0,94069.0,0.18518632]
[1735489355512,0.01850727,94095.0,94069.0,0.18518632]
[1735489355708,0.159981,94094.0,94070.0,0.022322]
[1735489355939,0.159981,94094.0,94070.0,0.12630832]
[1735489357271,0.01667242,94089.0,94070.0,0.12630832]
[1735489359945,0.01767242,94089.0,94070.0,0.12630832]
[1735489361091,0.01767242,94089.0,94070.0,0.10398632]
[1735489363998,0.001,94089.0,94070.0,0.10398632]
[1735489366944,0.001,94089.0,94070.0,0.10504726]
[1735489367152,0.001,94089.0,94071.0,0.18158632]
[1735489367153,0.01667211,94085.0,94071.0,0.18158632]
[1735489367373,0.01667211,94085.0,94076.0,0.0776]
[1735489367578,0.01667211,94085.0,94078.0,0.1249]
[1735489367807,0.001,94089.0,94080.0,0.0776]
[1735489368050,0.001,94089.0,94081.0,0.13725924]
[1735489368251,0.01667066,94098.0,94083.0,0.0776]
[1735489368561,0.01667066,94098.0,94085.0,0.0766]
[1735489368680,0.01667066,94098.0,94086.0,0.10398632]
[1735489369084,0.001,94089.0,94086.0,0.10398632]
[1735489370327,0.01667066,94098.0,94086.0,0.10398632]
[1735489370765,0.01767066,94098.0,94086.0,0.10398632]
[1735489371008,0.001,94089.0,94086.0,0.10798632]
[1735489371646,0.002,94089.0,94087.0,0.0776]
[1735489371883,0.001,94089.0,94088.0,0.10398632]
[1735489372554,0.0076653,94089.0,94088.0,0.10398632]
[1735489372983,0.0066653,94089.0,94088.0,0.10398632]
[1735489374302,0.0086653,94089.0,94088.0,0.10598632]
[1735489374871,0.0086653,94089.0,94088.0,0.11298632]
[1735489375081,0.0096653,94089.0,94088.0,0.11298632]
[1735489377490,0.0096653,94089.0,94088.0,0.13204495]
[1735489377726,0.0096653,94089.0,94088.0,0.11298632]
[1735489378662,0.02633557,94089.0,94088.0,0.11298632]
[1735489379908,0.16685063,94089.0,94088.0,0.11298632]
[1735489380440,0.16018533,94089.0,94088.0,0.11298632]
[1735489381164,0.01967027,94089.0,94088.0,0.11298632]
[1735489383927,0.003,94089.0,94088.0,0.11298632]
[1735489384125,0.23719176,94089.0,94088.0,0.11298632]
[1735489385697,0.003,94089.0,94088.0,0.009]
[1735489385905,0.001,94089.0,94088.0,0.002]
[1735489386108,0.002,94089.0,94088.0,0.008]
[1735489386546,0.001,94089.0,94088.0,0.002]
[1735489386967,0.28301687,94094.0,94081.0,0.076]
[1735489387175,0.00666626,94089.0,94081.0,0.10398632]
[1735489387380,0.00666626,94089.0,94088.0,0.002]
[1735489387804,0.28301687,94094.0,94088.0,0.002]
[1735489388009,1.038209,94093.0,94070.0,0.0760853]
[1735489388225,0.679821,94092.0,94071.0,0.10398632]
[1735489388437,0.001,94089.0,94088.0,0.003]
[1735489388853,0.01667213,94087.0,94081.0,0.001]
[1735489389624,0.03956354,94087.0,94081.0,0.001]
[1735489389829,0.00666645,94086.0,94081.0,0.001]
[1735489390219,0.00666645,94085.0,94081.0,0.001]
[1735489390423,0.00666645,94085.0,94071.0,0.10398632]
[1735489390924,0.00666645,94084.0,94071.0,0.10398632]
[1735489391754,0.01667213,94087.0,94071.0,0.10398632]
[1735489391755,0.00666645,94083.0,94071.0,0.10398632]
[1735489392373,0.00666645,94082.0,94081.0,0.003]
[1735489392577,0.00666645,94082.0,94071.0,0.10598632]
[1735489393025,0.00666645,94081.0,94071.0,0.10898632]
[1735489393422,0.18861277,94076.0,94071.0,0.10898632]
[1735489393538,0.18861277,94076.0,94071.0,0.10598632]
[1735489393970,0.18861277,94076.0,94071.0,0.10898632]
[1735489394174,0.14145153,94073.0,94071.0,0.10698632]
[1735489394380,0.14145153,94073.0,94071.0,0.10707172]
[1735489394580,0.14145153,94073.0,94071.0,0.10907172]
[1735489394987,0.00666645,94072.0,94071.0,0.10907172]
[1735489395219,0.00666645,94072.0,94071.0,0.10707172]
[1735489395589,0.00666645,94072.0,94071.0,0.10907172]
[1735489396033,0.00586645,94072.0,94071.0,0.34209597]
[1735489396194,0.00586645,94072.0,94071.0,0.34260293]
[1735489396390,0.00586645,94072.0,94071.0,0.34660293]
[1735489396822,0.00586645,94072.0,94071.0,0.34260293]
[1735489397087,0.00686645,94072.0,94071.0,0.44660293]
[1735489397243,0.001,94072.0,94071.0,0.44660293]
[1735489397697,0.001,94072.0,94071.0,0.44460293]
[1735489398143,0.002,94072.0,94071.0,0.44660293]
[1735489398807,0.001,94072.0,94071.0,0.44460293]
[1735489399338,0.001,94072.0,94071.0,0.44260293]
[1735489399735,0.002,94072.0,94071.0,0.44067868]
[1735489403384,0.01990861,94091.0,94082.0,0.1]
[1735489403624,0.09431592,94091.0,94083.0,0.10398632]
[1735489405001,0.18861277,94103.0,94083.0,0.10398632]
[1735489405657,0.18861277,94103.0,94083.0,0.10498632]
[1735489405866,0.18861277,94103.0,94084.0,0.03049863]
[1735489406030,0.18861277,94103.0,94085.0,0.10398632]
[1735489406223,0.18861277,94099.0,94085.0,0.10398632]
[1735489407034,0.01667019,94096.0,94085.0,0.10398632]
[1735489407235,0.18861277,94095.0,94085.0,0.10398632]
[1735489408055,0.00666604,94094.0,94071.0,0.07579236]
[1735489408306,0.347281,94093.0,94072.0,0.10398632]
[1735489408699,0.00666604,94092.0,94072.0,0.10398632]
[1735489409108,0.00666604,94092.0,94085.0,0.001]
[1735489409431,0.00666604,94091.0,94085.0,0.001]
[1735489409562,0.18861277,94087.0,94072.0,0.10398632]
[1735489409760,0.18861277,94087.0,94072.0,0.11446127]
[1735489410304,0.01667253,94084.0,94072.0,0.11446127]
[1735489410689,0.01667253,94084.0,94072.0,0.10398632]
[1735489410887,0.01667253,94084.0,94073.0,0.0825]
[1735489411123,0.01667253,94084.0,94074.0,0.20398632]
[1735489411358,0.00666604,94083.0,94074.0,0.20398632]
[1735489411559,0.00666604,94083.0,94074.0,0.10398632]
[1735489411778,0.00666604,94083.0,94075.0,0.02417495]
[1735489412089,0.00666604,94082.0,94076.0,0.10398632]
[1735489412859,0.00666604,94081.0,94076.0,0.10398632]
[1735489413442,0.05185851,94090.0,94076.0,0.10398632]
[1735489414306,0.094299,94084.0,94076.0,0.10398632]
[1735489414526,0.095299,94084.0,94077.0,0.03143389]
[1735489414724,0.095299,94084.0,94078.0,0.10398632]
[1735489414942,0.094299,94084.0,94079.0,0.0496]
[1735489415152,0.094299,94084.0,94080.0,0.28648632]
[1735489415364,0.094299,94084.0,94081.0,0.14675202]
[1735489415571,0.094299,94084.0,94082.0,0.10398632]
[1735489415782,0.094299,94085.0,94082.0,0.10398632]
[1735489415989,0.001,94084.0,94082.0,0.10398632]
[1735489416203,0.094299,94085.0,94082.0,0.10398632]
[1735489416384,0.094299,94085.0,94083.0,0.04828383]
[1735489416597,0.094299,94085.0,94084.0,0.10398632]
[1735489416804,0.094299,94094.0,94092.0,0.0825]
[1735489417015,0.094299,94094.0,94093.0,0.10298632]
[1735489417670,0.094299,94094.0,94093.0,0.10198632]
[1735489418296,0.09447,94101.0,94093.0,0.10198632]
[1735489418450,0.09447,94101.0,94093.0,0.11218495]
[1735489418811,0.09447,94101.0,94093.0,0.10898632]
[1735489419004,0.094299,94095.0,94093.0,0.10898632]
[1735489419410,0.094299,94095.0,94093.0,0.10386232]
[1735489420061,0.094299,94095.0,94084.0,0.0825]
[1735489420273,0.094299,94095.0,94068.0,0.0825855]
[1735489420453,0.198794,94094.0,94072.0,0.12720264]
[1735489421126,0.01667183,94089.0,94072.0,0.12720264]
[1735489421345,0.11097083,94089.0,94072.0,0.12720264]
[1735489421925,0.11097083,94089.0,94072.0,0.13220264]
[1735489422165,0.094299,94087.0,94072.0,0.13220264]
[1735489422375,0.094299,94087.0,94073.0,0.02643658]
[1735489422549,0.094299,94087.0,94074.0,0.10398632]
[1735489422954,0.094299,94087.0,94074.0,0.10369632]
[1735489423181,0.094299,94083.0,94074.0,0.10369632]
[1735489424419,0.094299,94079.0,94074.0,0.10769632]
[1735489424605,0.094299,94079.0,94075.0,0.01909595]
[1735489424807,0.094299,94079.0,94076.0,0.10398632]
[1735489425786,0.00666675,94078.0,94076.0,0.10398632]
[1735489426187,0.00666675,94078.0,94076.0,0.11298632]
[1735489426392,0.00666675,94077.0,94076.0,0.11298632]
[1735489427217,0.02333938,94077.0,94076.0,0.11298632]
[1735489428070,0.02333938,94077.0,94076.0,0.10898632]
[1735489428450,0.02333938,94077.0,94076.0,0.11798632]
[1735489428877,0.02333938,94077.0,94076.0,0.10898632]
[1735489429369,0.01767263,94077.0,94076.0,0.11798632]
[1735489429760,0.01667263,94077.0,94076.0,0.12075272]
[1735489430355,0.01667263,94077.0,94076.0,0.0118664]
[1735489430550,0.01667263,94077.0,94068.0,8.55e-05]
[1735489430810,0.001,94077.0,94076.0,0.006]
[1735489431415,0.13238208,94080.0,94072.0,0.10398632]
[1735489431612,0.001,94077.0,94076.0,0.009]
[1735489432082,0.09427686,94079.0,94072.0,0.10398632]
[1735489432290,0.09427686,94079.0,94073.0,0.01047495]
[1735489432439,0.001,94077.0,94076.0,0.007]
[1735489432672,0.09027686,94079.0,94076.0,0.007]
[1735489433222,0.09027686,94079.0,94074.0,0.10398632]
[1735489433423,0.09027686,94079.0,94074.0,0.10407172]
[1735489433647,0.09044766,94079.0,94075.0,0.01193098]
[1735489434882,0.001,94077.0,94076.0,0.007]
[1735489435417,0.09044766,94079.0,94075.0,0.01493098]
[1735489435615,0.0001708,94079.0,94075.0,0.01493098]
[1735489435832,0.0011708,94079.0,94075.0,0.02093098]
[1735489436071,0.0011708,94079.0,94075.0,0.01793098]
[1735489436277,0.0001708,94079.0,94075.0,0.01193098]
[1735489436724,0.001,94077.0,94076.0,0.007]
[1735489437512,0.00766678,94077.0,94076.0,0.007]
[1735489438511,0.00666678,94077.0,94074.0,0.10407172]
[1735489438719,0.00666678,94077.0,94076.0,0.003]
[1735489439847,0.00666678,94077.0,94076.0,0.01]
[1735489440079,0.00766678,94077.0,94076.0,0.007]
[1735489440969,0.001,94077.0,94076.0,0.007]
[1735489441954,0.0001708,94079.0,94074.0,0.0030854]
[1735489442154,0.0001708,94079.0,94074.0,8.54e-05]
[1735489442155,0.18856488,94077.0,94074.0,8.54e-05]
[1735489442362,0.18856488,94077.0,94076.0,0.004]
[1735489442591,0.18856488,94077.0,94076.0,0.10998632]
[1735489442946,0.18856488,94077.0,94076.0,0.11706126]
[1735489443094,0.23593677,94079.0,94076.0,0.11506126]
[1735489443317,0.001,94077.0,94076.0,0.01707494]
[1735489443554,0.001,94077.0,94076.0,0.12106126]
[1735489445341,0.0001708,94079.0,94076.0,0.11506126]
[1735489445557,0.0001708,94079.0,94077.0,0.13363875]
[1735489445895,0.0011708,94079.0,94077.0,0.13363875]
[1735489446124,0.0011708,94079.0,94078.0,0.0807]
[1735489446339,0.0011708,94079.0,94078.0,0.18468632]
[1735489446853,0.0078371,94079.0,94078.0,0.18368632]
[1735489447056,0.0068371,94079.0,94078.0,0.30669547]
[1735489447375,0.0078371,94079.0,94078.0,0.30669547]
[1735489448637,0.0078371,94079.0,94078.0,0.29669547]
[1735489449042,0.0068371,94079.0,94078.0,0.34629547]
[1735489449482,0.0078371,94079.0,94078.0,0.35529547]
[1735489449706,0.0078371,94079.0,94078.0,0.45529547]
[1735489449892,0.0001708,94094.0,94093.0,0.1]
[1735489450098,0.0001708,94094.0,94093.0,0.20398632]
[1735489451634,0.0001708,94094.0,94093.0,0.28168632]
[1735489452680,0.0001708,94094.0,94093.0,0.29068632]
[1735489453103,0.0001708,94094.0,94093.0,0.28168632]
[1735489453309,0.0001708,94094.0,94093.0,0.32481495]
[1735489453511,0.0001708,94094.0,94093.0,0.33381495]
[1735489453721,0.0001708,94094.0,94093.0,0.33285495]
[1735489454098,0.0001708,94094.0,94093.0,0.36945495]
[1735489454305,0.0001708,94094.0,94093.0,0.46945495]
[1735489454504,0.0011708,94094.0,94093.0,0.47645495]
[1735489455456,0.0001708,94094.0,94093.0,0.46945495]
[1735489456405,0.000171,94101.0,94093.0,0.46945495]
[1735489456406,0.000171,94101.0,94098.0,0.24464]
[1735489456583,0.000171,94101.0,94100.0,0.19504]
[1735489456820,0.000171,94101.0,94100.0,0.30112632]
[1735489457028,0.000171,94101.0,94100.0,0.40112632]
[1735489457852,0.000171,94101.0,94100.0,0.40127925]
[1735489458448,0.000171,94101.0,94100.0,0.41027925]
[1735489458688,0.000171,94101.0,94100.0,0.45634572]
[1735489458898,0.001171,94101.0,94100.0,0.36534572]
[1735489459100,0.001171,94101.0,94100.0,0.46534572]
[1735489463224,0.000171,94115.0,94111.0,0.32224]
[1735489463432,0.000171,94115.0,94111.0,0.42622632]
[1735489463646,0.000171,94115.0,94111.0,0.46884895]
[1735489464669,0.000171,94115.0,94111.0,0.47784895]
[1735489464881,0.000171,94115.0,94111.0,0.47384895]
[1735489465498,0.000171,94115.0,94111.0,0.46884895]
[1735489465704,0.000171,94115.0,94111.0,0.58094895]
[1735489465908,0.000171,94115.0,94111.0,0.59794895]
[1735489466345,0.000171,94115.0,94114.0,0.30714]
[1735489466551,0.000171,94115.0,94114.0,0.63951264]
[1735489466999,0.09428275,94166.0,94148.0,0.16774]
[1735489467210,0.23686551,94171.0,94153.0,0.10398632]
[1735489467211,0.0483,94171.0,94153.0,0.10398632]
[1735489467428,0.0483,94171.0,94155.0,0.10398632]
[1735489468049,0.0483,94171.0,94155.0,0.11438495]
[1735489468192,0.04842396,94171.0,94155.0,0.11438495]
[1735489468598,0.06508227,94171.0,94155.0,0.11438495]
[1735489469038,0.06508227,94171.0,94155.0,0.11838495]
[1735489469445,0.06508227,94171.0,94155.0,0.11438495]
[1735489469651,0.06508227,94171.0,94156.0,0.02094249]
[1735489469869,0.06508227,94171.0,94157.0,0.10398632]
[1735489470503,0.01678227,94171.0,94157.0,0.10398632]
[1735489470710,0.01695307,94171.0,94157.0,0.10398632]
[1735489470929,0.01695307,94171.0,94163.0,0.10398632]
[1735489471160,0.01695307,94171.0,94164.0,0.01990263]
[1735489471363,0.01695307,94171.0,94165.0,0.10398632]
[1735489473012,0.01695307,94171.0,94165.0,0.10998632]
[1735489475497,0.00029476,94171.0,94166.0,0.00106168]
[1735489475647,0.00029476,94171.0,94167.0,0.10398632]
[1735489475852,0.00029476,94171.0,94168.0,0.0111048]
[1735489476077,0.00029476,94171.0,94169.0,0.10398632]
[1735489478923,0.01695252,94171.0,94169.0,0.10398632]
[1735489479457,0.00029476,94171.0,94169.0,0.10398632]
[1735489479924,0.00029476,94171.0,94169.0,0.10998632]
[1735489480130,0.0646805,94179.0,94169.0,0.10998632]
[1735489480341,0.06476169,94179.0,94170.0,0.01099863]
[1735489480548,8.119e-05,94179.0,94171.0,0.10398632]
[1735489483757,8.119e-05,94179.0,94171.0,0.11198632]
[1735489484442,0.0787,94177.0,94171.0,0.11298632]
[1735489484657,0.0787,94177.0,94171.0,0.009]
[1735489484906,0.0787,94177.0,94171.0,0.008]
[1735489485326,0.00496,94175.0,94171.0,0.011]
[1735489485540,0.0787,94174.0,94171.0,0.011]
[1735489485754,0.0787,94174.0,94171.0,0.003]
[1735489486176,0.00496,94172.0,94171.0,0.012]
[1735489486401,1.169069,94172.0,94171.0,0.012]
[1735489486609,1.19574805,94172.0,94171.0,0.003]
[1735489486821,1.19574805,94172.0,94117.0,0.0479]
[1735489486822,0.00496,94159.0,94122.0,0.17754]
[1735489487032,0.00496,94149.0,94126.0,0.10398632]
[1735489487248,0.0787,94148.0,94126.0,0.10398632]
[1735489487462,0.0472,94147.0,94126.0,0.10398632]
[1735489488291,0.01666278,94142.0,94126.0,0.10398632]
[1735489488512,0.01666278,94142.0,94126.0,0.10413925]
[1735489489719,0.01666278,94142.0,94126.0,0.11455318]
[1735489489927,0.0472,94147.0,94126.0,0.11455318]
[1735489490141,0.0787,94155.0,94129.0,0.10398632]
[1735489490350,0.01666254,94152.0,94129.0,0.10398632]
[1735489490557,0.01666254,94152.0,94130.0,0.03010932]
[1735489490761,0.01666254,94152.0,94131.0,0.10398632]
[1735489490963,0.109187,94151.0,94131.0,0.10398632]
[1735489491181,0.01666254,94152.0,94131.0,0.10398632]
[1735489492561,0.01666254,94152.0,94131.0,0.10498632]
[1735489492753,0.01666254,94152.0,94132.0,0.03232025]
[1735489492965,0.01666254,94152.0,94133.0,0.10398632]
[1735489493607,0.01666254,94152.0,94137.0,0.10398632]
[1735489493833,0.0787,94174.0,94147.0,0.0825]
[1735489494016,0.0787,94174.0,94148.0,0.13213895]
[1735489494654,0.0787,94174.0,94149.0,0.10398632]
[1735489495220,0.0797,94174.0,94149.0,0.10398632]
[1735489495642,0.0787,94174.0,94149.0,0.10398632]
[1735489496042,0.0787,94174.0,94149.0,0.10498632]
[1735489496239,0.0787,94174.0,94150.0,0.0410679]
[1735489496418,0.0787,94174.0,94151.0,0.10398632]
[1735489497233,0.01665849,94173.0,94151.0,0.10398632]
[1735489498747,0.01665849,94173.0,94151.0,0.10898632]
[1735489499165,0.01665849,94173.0,94151.0,0.10398632]
[1735489499373,0.01665849,94173.0,94152.0,0.04225942]
[1735489499551,0.01665849,94173.0,94153.0,0.10398632]
[1735489499747,0.01665849,94173.0,94156.0,0.10398632]
[1735489499950,0.0001706,94179.0,94157.0,0.10398632]
[1735489500385,0.00666002,94172.0,94157.0,0.10398632]
[1735489500713,0.00666002,94172.0,94158.0,0.12821489]
[1735489500904,0.00666002,94172.0,94158.0,0.12836782]
[1735489501098,0.0001706,94179.0,94165.0,0.10398632]
[1735489501271,0.0001706,94179.0,94166.0,0.0759]
[1735489501478,0.0001706,94179.0,94167.0,0.10398632]
[1735489501703,0.0001706,94179.0,94168.0,0.02749263]
[1735489502076,0.0001706,94179.0,94169.0,0.10398632]
[1735489502280,0.0001706,94179.0,94170.0,0.10398632]
[1735489502426,0.0001706,94179.0,94171.0,0.10398632]
[1735489503030,0.078,94178.0,94171.0,0.10398632]
[1735489503236,0.0465,94177.0,94168.0,0.003]
[1735489503449,0.0465,94177.0,94169.0,0.10398632]
[1735489503853,0.0465,94177.0,94171.0,0.003]
[1735489504226,0.0465,94177.0,94169.0,0.10398632]
[1735489505593,0.0465,94177.0,94170.0,0.01039863]
[1735489505892,0.0465,94177.0,94170.0,0.11438495]
[1735489506097,0.00666027,94176.0,94170.0,0.11438495]
[1735489507069,0.00666027,94175.0,94170.0,0.11438495]
[1735489507474,0.00666027,94175.0,94170.0,0.11838495]
[1735489507770,0.00666027,94174.0,94171.0,0.01184703]
[1735489507980,0.00666027,94174.0,94170.0,0.10398632]
[1735489508590,0.01665762,94176.0,94170.0,0.10398632]
[1735489509032,0.00666,94175.0,94170.0,0.10398632]
[1735489509846,0.00666,94174.0,94170.0,0.10798632]
[1735489510035,0.00666,94174.0,94170.0,0.10398632]
[1735489510443,0.00666,94173.0,94170.0,0.12239348]
[1735489510802,0.00666,94173.0,94170.0,0.11198632]
[1735489511001,0.00666,94173.0,94170.0,0.10398632]
[1735489511234,0.00666,94172.0,94170.0,0.10398632]
[1735489511432,0.00666,94172.0,94170.0,0.11298632]
[1735489512006,0.01665762,94176.0,94170.0,0.11098632]
[1735489512420,0.01665762,94176.0,94171.0,0.11599128]
[1735489512626,0.01665762,94176.0,94171.0,0.11509348]
[1735489513060,0.01665762,94176.0,94171.0,0.10398632]
[1735489514023,0.09445335,94179.0,94171.0,0.10398632]
[1735489514229,0.00665977,94175.0,94171.0,0.10998632]
[1735489514444,0.00665977,94175.0,94171.0,0.007]
[1735489514445,0.00496,94174.0,94171.0,0.007]
[1735489514675,0.00496,94172.0,94171.0,0.007]
[1735489515097,0.00496,94172.0,94167.0,8.53e-05]
[1735489515310,0.00496,94168.0,94167.0,8.53e-05]
[1735489515515,1.13733666,94168.0,94167.0,8.53e-05]
[1735489516419,0.00496,94159.0,94158.0,0.00015293]
[1735489516655,0.14613518,94159.0,94158.0,0.00015293]
[1735489517494,0.15279495,94159.0,94158.0,0.00015293]
[1735489517871,1.29100395,94159.0,94158.0,0.00015293]
[1735489518232,1.17432877,94159.0,94158.0,0.00015293]